bitfinex/quotes_BTCUSD_20250519
["timestamp","ask_amount","ask_price","bid_price","bid_amount"]
[1747662057996,0.01943171,102920.0,102910.0,0.26461233]
[1747662058252,0.0388639,102920.0,102910.0,0.27432918]
[1747662058462,0.0388639,102920.0,102910.0,0.28709925]
[1747662058679,0.05340475,102920.0,102910.0,0.28709925]
[1747662058912,0.23318967,102920.0,102910.0,0.28709925]
[1747662059125,0.0398638,102920.0,102910.0,0.28709859]
[1747662059340,0.23418986,102920.0,102910.0,0.25794862]
[1747662059508,0.0204319,102920.0,102910.0,0.27738203]
[1747662059746,0.22447339,102920.0,102910.0,0.04417007]
[1747662059922,0.23901424,102920.0,102910.0,0.2579488]
[1747662060140,0.24101424,102920.0,102910.0,0.2579488]
[1747662060339,0.04668856,102920.0,102910.0,0.27738221]
[1747662060551,0.05640465,102920.0,102910.0,0.27738221]
[1747662060907,0.26044661,102920.0,102910.0,0.26766565]
[1747662061113,0.26044661,102920.0,102910.0,0.2773824]
[1747662061326,0.26044661,102920.0,102910.0,0.28709906]
[1747662061489,0.05640465,102920.0,102910.0,0.6870984]
[1747662061696,0.04668846,102920.0,102910.0,0.6870984]
[1747662061899,0.003,102920.0,102910.0,0.6870984]
[1747662062108,0.003,102920.0,102910.0,0.9493384]
[1747662062689,0.003,102920.0,102910.0,1.3866478]
[1747662062900,0.001,102920.0,102910.0,1.46496784]
[1747662063332,0.72393865,102950.0,102940.0,0.25502997]
[1747662063550,0.73365181,102950.0,102940.0,0.25502997]
[1747662065778,0.00014416,102970.0,102960.0,0.70060828]
[1747662065985,0.00014416,102970.0,102960.0,0.71334923]
[1747662066642,0.00214416,102970.0,102960.0,0.71334923]
[1747662066852,0.00214416,102970.0,102960.0,0.71645508]
[1747662067068,0.00014416,102970.0,102960.0,0.71645508]
[1747662067282,0.00014416,102970.0,102960.0,0.72045508]
[1747662067717,0.00014416,102970.0,102960.0,0.72345508]
[1747662068423,0.00014416,102970.0,102960.0,0.73306565]
[1747662068859,0.00014416,102970.0,102960.0,1.13306565]
[1747662069932,0.01956587,102970.0,102960.0,1.13306565]
[1747662070119,0.00014416,102970.0,102960.0,1.13306565]
[1747662070601,0.2233428,102980.0,102970.0,0.23674279]
[1747662070783,0.00971118,102970.0,102960.0,1.01903347]
[1747662071007,0.02913326,102970.0,102960.0,1.02874531]
[1747662071221,0.01942171,102970.0,102960.0,1.01600436]
[1747662071425,0.02913299,102970.0,102960.0,0.67600436]
[1747662071629,0.01942171,102970.0,102960.0,0.67300436]
[1747662071838,0.00971071,102970.0,102960.0,0.67300436]
[1747662072044,0.01942161,102970.0,102960.0,0.67300436]
[1747662072285,0.0291327,102970.0,102960.0,0.67300436]
[1747662072515,0.22336525,102970.0,102960.0,0.43990585]
[1747662072725,0.22819501,102970.0,102960.0,0.40310585]
[1747662072951,0.22819501,102970.0,102960.0,0.00310585]
[1747662073170,0.22819501,102970.0,102960.0,0.01281835]
[1747662073385,0.22819501,102970.0,102960.0,0.21678086]
[1747662073824,0.22819501,102970.0,102960.0,0.23049308]
[1747662074036,0.22819501,102970.0,102960.0,0.23249308]
[1747662074473,0.20877217,102970.0,102960.0,0.00910585]
[1747662074674,0.20877217,102970.0,102960.0,0.006]
[1747662075104,0.64609526,102970.0,102960.0,0.006]
[1747662075743,0.30608157,102970.0,102960.0,0.006]
[1747662075958,0.64609526,102970.0,102960.0,0.006]
[1747662076223,0.30608157,102970.0,102960.0,0.004]
[1747662076433,0.21850345,102960.0,102950.0,0.21369428]
[1747662076640,0.21850345,102960.0,102950.0,0.20398102]
[1747662076852,0.21369492,102950.0,102940.0,0.64551587]
[1747662077064,0.22823643,102950.0,102940.0,0.0318]
[1747662077275,0.23314456,102940.0,102930.0,0.2459352]
[1747662077506,0.22343073,102940.0,102930.0,0.24593739]
[1747662077721,0.2137372,102930.0,102920.0,0.70724521]
[1747662077937,0.22345216,102930.0,102920.0,0.43696925]
[1747662078183,0.21856271,102930.0,102920.0,0.00606925]
[1747662078391,0.6558858,102930.0,102920.0,0.00606925]
[1747662078593,1.00563776,102930.0,102920.0,0.00014416]
[1747662078824,0.65587211,102930.0,102920.0,0.19446984]
[1747662079030,0.32558745,102930.0,102920.0,0.19446984]
[1747662079236,0.32558745,102930.0,102920.0,0.00014416]
[1747662079465,0.66560114,102930.0,102920.0,0.00014416]
[1747662079883,0.78435964,102930.0,102920.0,0.00414416]
[1747662080118,0.78435964,102930.0,102920.0,0.00014416]
[1747662080534,1.13403215,102930.0,102920.0,0.00214416]
[1747662080715,1.16563215,102930.0,102920.0,0.00014416]
[1747662081121,1.16863215,102930.0,102920.0,0.00014416]
[1747662081328,1.15343215,102930.0,102920.0,0.00014416]
[1747662081675,0.66858745,102930.0,102920.0,0.00014416]
[1747662081785,0.92010745,102930.0,102920.0,0.00014416]
[1747662082393,0.71608559,102930.0,102920.0,0.00014416]
[1747662082609,0.92010745,102930.0,102920.0,0.00014416]
[1747662082820,1.17422745,102930.0,102920.0,0.00014416]
[1747662083276,0.66858745,102930.0,102920.0,0.00014416]
[1747662083998,1.12735964,102930.0,102920.0,0.00014416]
[1747662084825,0.66858745,102930.0,102920.0,0.00014416]
[1747662087151,0.03214516,102930.0,102920.0,0.25431774]
[1747662087366,0.22645197,102930.0,102920.0,0.24460193]
[1747662087577,0.2167372,102930.0,102920.0,0.24770977]
[1747662087773,0.19730681,102930.0,102920.0,0.033952]
[1747662087980,0.21184766,102930.0,102920.0,0.003252]
[1747662088185,0.30915706,102930.0,102920.0,0.003252]
[1747662091738,1.24758012,102940.0,102930.0,0.39596021]
[1747662091943,1.34488952,102940.0,102930.0,0.39596021]
[1747662092572,1.09036952,102940.0,102930.0,0.39596021]
[1747662092795,0.01942633,102950.0,102940.0,0.22342978]
[1747662093012,0.01942454,102960.0,102950.0,0.21369539]
[1747662093233,0.23312116,102950.0,102940.0,0.23810928]
[1747662093458,0.23312097,102950.0,102940.0,0.6575375]
[1747662093673,0.23312097,102950.0,102940.0,0.64782358]
[1747662093674,0.22340837,102950.0,102940.0,0.64782358]
[1747662093898,0.02913931,102950.0,102940.0,0.66725114]
[1747662094111,0.02913865,102950.0,102940.0,0.66725114]
[1747662094331,0.03885191,102950.0,102940.0,0.66925114]
[1747662094539,0.01942548,102950.0,102940.0,0.66925114]
[1747662094785,0.02913865,102950.0,102940.0,0.66925114]
[1747662095009,0.21369549,102950.0,102940.0,0.43610734]
[1747662095250,0.21369549,102950.0,102940.0,0.59939527]
[1747662095455,0.21369549,102950.0,102940.0,0.21882386]
[1747662095888,0.00971288,102950.0,102940.0,0.64796553]
[1747662096100,0.19425019,102960.0,102950.0,0.19426906]
[1747662096101,0.20879104,102960.0,102950.0,0.19426906]
[1747662096545,0.20879104,102960.0,102950.0,0.20398251]
[1747662096757,0.20879104,102960.0,102950.0,0.00310734]
[1747662097527,0.20879104,102960.0,102950.0,0.00410734]
[1747662099666,1.12137263,102960.0,102950.0,0.00410734]
[1747662099871,0.2447569,102940.0,102930.0,0.39596021]
[1747662100073,0.68182176,102940.0,102930.0,0.39596021]
[1747662100850,0.69822176,102940.0,102930.0,0.39596021]
[1747662101733,0.78427574,102940.0,102930.0,0.39596021]
[1747662101958,0.3255663,102940.0,102930.0,0.39596021]
[1747662102178,0.65102545,102940.0,102930.0,0.39596021]
[1747662102390,0.55371605,102940.0,102930.0,0.39596021]
[1747662102593,0.5682569,102940.0,102930.0,0.39596021]
[1747662102803,0.5692569,102940.0,102930.0,0.39596021]
[1747662104328,1.12527574,102940.0,102930.0,0.39596021]
[1747662104720,1.14147574,102940.0,102930.0,0.39596021]
[1747662105199,1.15707574,102940.0,102930.0,0.39596021]
[1747662106271,1.17707574,102940.0,102930.0,0.39596021]
[1747662106749,1.69390514,102940.0,102930.0,0.39596021]
[1747662106953,1.59659574,102940.0,102930.0,0.39596021]
[1747662107953,1.59559574,102940.0,102930.0,0.39596021]
[1747662108098,1.58559574,102940.0,102930.0,0.39596021]
[1747662108300,1.58759574,102940.0,102930.0,0.39596021]
[1747662108948,1.68490514,102940.0,102930.0,0.39596021]
[1747662109873,1.58759574,102940.0,102930.0,0.39596021]
[1747662110540,1.58763574,102940.0,102930.0,0.39596021]
[1747662110744,0.73258545,102940.0,102930.0,0.39596021]
[1747662110949,1.23562545,102940.0,102930.0,0.39596021]
[1747662111152,0.31302545,102940.0,102930.0,0.39596021]
[1747662111273,0.56290545,102940.0,102930.0,0.39596021]
[1747662111478,0.31302545,102940.0,102930.0,0.79596021]
[1747662111701,0.90254545,102940.0,102930.0,0.82806021]
[1747662111911,0.90238545,102940.0,102930.0,0.82806021]
[1747662112690,0.46455605,102940.0,102930.0,0.82806021]
[1747662113722,0.21571605,102940.0,102930.0,0.82806021]
[1747662113916,0.21571605,102940.0,102930.0,1.02236702]
[1747662114125,0.002,102940.0,102930.0,1.0515117]
[1747662114590,0.03885229,102950.0,102940.0,0.0418143]
[1747662114591,0.22340966,102950.0,102940.0,0.0418143]
[1747662114794,0.22340966,102950.0,102940.0,0.24581634]
[1747662115169,0.22340966,102950.0,102940.0,0.25553035]
[1747662115369,0.22340966,102950.0,102940.0,0.65553035]
[1747662115557,0.23312229,102950.0,102940.0,0.66524427]
[1747662116204,0.23412229,102950.0,102940.0,0.66524427]
[1747662116416,0.23412229,102950.0,102940.0,0.674958]
[1747662116417,0.03013978,102950.0,102940.0,0.674958]
[1747662116812,0.02242605,102950.0,102940.0,0.674958]
[1747662117026,0.003,102950.0,102940.0,0.674958]
[1747662117245,0.003,102950.0,102940.0,0.68165332]
[1747662118104,0.01271269,102950.0,102940.0,0.68165332]
[1747662118308,0.003,102950.0,102940.0,0.68165332]
[1747662118523,0.003,102950.0,102940.0,0.68165388]
[1747662119324,0.003,102950.0,102940.0,0.68165389]
[1747662120133,0.003,102950.0,102940.0,0.68165518]
[1747662120496,0.003,102950.0,102940.0,0.77896458]
[1747662122098,0.01271269,102950.0,102940.0,0.77896458]
[1747662122298,0.22540799,102950.0,102940.0,0.63915335]
[1747662122503,0.02913959,102950.0,102940.0,0.66829568]
[1747662122753,0.2331221,102950.0,102940.0,0.65958185]
[1747662122962,0.21369586,102950.0,102940.0,0.41376542]
[1747662123171,0.21369586,102950.0,102940.0,0.01376542]
[1747662123375,1.12425555,102950.0,102940.0,0.01376542]
[1747662123602,0.66554611,102950.0,102940.0,0.01376542]
[1747662123880,0.56823671,102950.0,102940.0,0.0334]
[1747662124115,0.22823671,102950.0,102940.0,0.23740213]
[1747662124324,0.22823671,102950.0,102940.0,0.03946929]
[1747662124751,0.22823671,102950.0,102940.0,0.00706929]
[1747662125422,0.22823671,102950.0,102940.0,0.21107142]
[1747662125676,0.21369586,102950.0,102940.0,0.25017846]
[1747662125899,0.21369586,102950.0,102940.0,0.25989266]
[1747662126074,0.21369586,102950.0,102940.0,0.25318581]
[1747662126296,0.20398251,102950.0,102940.0,0.04617551]
[1747662126444,0.20398251,102950.0,102940.0,0.25017783]
[1747662127059,0.20398251,102950.0,102940.0,0.01377551]
[1747662128021,0.20398251,102950.0,102940.0,0.21777783]
[1747662128231,0.19426906,102950.0,102940.0,0.01377551]
[1747662128410,0.20880991,102950.0,102940.0,0.01377551]
[1747662129355,0.20398185,102950.0,102940.0,0.20806344]
[1747662129573,0.2136953,102950.0,102940.0,0.25979156]
[1747662129761,0.20398251,102950.0,102940.0,0.25007764]
[1747662130029,0.20398251,102950.0,102940.0,0.26950558]
[1747662130030,0.21369568,102950.0,102940.0,0.26950558]
[1747662130245,0.21369568,102950.0,102940.0,0.26950576]
[1747662130455,0.21369568,102950.0,102940.0,0.26950571]
[1747662131201,0.20398251,102950.0,102940.0,0.2597917]
[1747662132260,0.19426906,102950.0,102940.0,0.25007759]
[1747662133032,0.19426906,102950.0,102940.0,0.01377546]
[1747662133444,0.30611931,102950.0,102940.0,0.01377546]
[1747662133660,0.64567906,102950.0,102940.0,0.01377546]
[1747662134021,0.30611931,102950.0,102940.0,0.01377546]
[1747662134750,0.98567906,102950.0,102940.0,0.01377546]
[1747662134961,1.01677906,102950.0,102940.0,0.01377546]
[1747662135373,1.01677906,102950.0,102940.0,0.00770666]
[1747662135853,1.1050991,102950.0,102940.0,0.001]
[1747662136075,1.2124085,102950.0,102940.0,0.001]
[1747662136277,0.60004298,102940.0,102930.0,0.39596021]
[1747662136478,1.38647188,102940.0,102930.0,0.39596021]
[1747662136699,1.86691188,102940.0,102930.0,0.39596021]
[1747662136912,1.96422128,102940.0,102930.0,0.39596021]
[1747662137120,1.53735213,102940.0,102930.0,0.39596021]
[1747662137394,0.32557592,102940.0,102930.0,0.39596021]
[1747662137802,1.03484213,102940.0,102930.0,0.39596021]
[1747662138012,0.21371624,102940.0,102930.0,0.60969741]
[1747662138228,0.22343063,102940.0,102930.0,0.65101227]
[1747662138440,0.22743063,102940.0,102930.0,0.65708173]
[1747662138587,0.22343063,102940.0,102930.0,0.65708173]
[1747662138788,0.22643063,102940.0,102930.0,0.66379412]
[1747662139139,0.22843063,102940.0,102930.0,0.66379412]
[1747662139346,0.21571652,102940.0,102930.0,0.65407926]
[1747662139564,0.20600232,102940.0,102930.0,0.40874206]
[1747662139777,0.30813818,102940.0,102930.0,0.40974206]
[1747662139986,0.64813818,102940.0,102930.0,0.40974206]
[1747662140192,0.64613818,102940.0,102930.0,0.4036726]
[1747662140410,0.64613818,102940.0,102930.0,0.39896021]
[1747662140820,0.53428793,102940.0,102930.0,0.40667555]
[1747662141023,0.53428793,102940.0,102930.0,0.40203017]
[1747662141244,0.53428793,102940.0,102930.0,0.40974827]
[1747662141443,0.30613818,102940.0,102930.0,0.40974827]
[1747662141856,0.19428793,102940.0,102930.0,0.62863698]
[1747662142071,0.00971401,102940.0,102930.0,0.63835213]
[1747662142213,0.02914195,102940.0,102930.0,0.65778123]
[1747662142432,0.22342988,102940.0,102930.0,0.63835179]
[1747662142639,0.23314427,102940.0,102930.0,0.65478401]
[1747662143317,0.23314427,102940.0,102930.0,0.65478394]
[1747662143511,0.22343044,102940.0,102930.0,0.64506898]
[1747662143732,0.21371652,102940.0,102930.0,0.42514702]
[1747662143971,0.21371652,102940.0,102930.0,0.40974702]
[1747662143972,0.22825737,102940.0,102930.0,0.40974702]
[1747662144188,0.32556677,102940.0,102930.0,0.40974702]
[1747662144393,0.32556677,102940.0,102930.0,0.40302965]
[1747662144821,0.66556677,102940.0,102930.0,0.39696021]
[1747662149640,1.36036677,102940.0,102930.0,0.39696021]
[1747662149868,1.60536677,102940.0,102930.0,0.39696021]
[1747662151928,1.84948677,102940.0,102930.0,0.39696021]
[1747662155324,1.84948677,102940.0,102930.0,0.40303027]
[1747662155565,1.84796677,102940.0,102930.0,0.40303027]
[1747662155754,1.84796677,102940.0,102930.0,0.39696021]
[1747662157087,1.84796677,102940.0,102930.0,0.40303021]
[1747662157694,1.26536677,102940.0,102930.0,0.43403021]
[1747662157860,0.90851652,102940.0,102930.0,0.62833702]
[1747662158255,0.90851652,102940.0,102930.0,0.63805226]
[1747662158472,0.90851652,102940.0,102930.0,0.64477281]
[1747662158692,0.00971392,102940.0,102930.0,0.64291759]
[1747662158903,0.00971335,102950.0,102940.0,0.22343044]
[1747662159116,0.21369548,102950.0,102940.0,0.22343044]
[1747662159330,0.21369548,102950.0,102940.0,0.26762099]
[1747662159548,0.01942642,102950.0,102940.0,0.27733472]
[1747662159754,0.02913648,102960.0,102950.0,0.25400827]
[1747662159964,0.03884889,102960.0,102950.0,0.26072882]
[1747662160268,0.04856139,102960.0,102950.0,0.66679882]
[1747662160364,0.02913648,102960.0,102950.0,0.66679882]
[1747662160582,0.68159132,102970.0,102960.0,0.25548657]
[1747662160583,0.00971137,102970.0,102960.0,0.25548657]
[1747662160799,0.00971081,102970.0,102960.0,0.23309832]
[1747662161005,0.01942181,102970.0,102960.0,0.26996832]
[1747662161223,0.22336478,102970.0,102960.0,0.25726537]
[1747662161431,0.21365378,102970.0,102960.0,0.2669775]
[1747662161638,0.21365378,102970.0,102960.0,0.27668953]
[1747662161867,0.20394269,102970.0,102960.0,0.02829055]
[1747662162969,0.20394269,102970.0,102960.0,0.22254074]
[1747662163140,0.20394269,102970.0,102960.0,0.24875324]
[1747662163760,0.20394269,102970.0,102960.0,0.04679055]
[1747662163985,0.20394269,102970.0,102960.0,0.25075324]
[1747662164168,0.20394269,102970.0,102960.0,0.26046565]
[1747662164735,0.19423132,102970.0,102960.0,0.05750305]
[1747662164940,0.19423132,102970.0,102960.0,0.24204074]
[1747662165149,0.20394279,102970.0,102960.0,0.27117778]
[1747662165322,0.20875331,102980.0,102970.0,0.23634269]
[1747662165832,0.19424577,102980.0,102970.0,0.0324]
[1747662166037,0.01942039,102980.0,102970.0,0.25576506]
[1747662166268,0.00976316,103000.0,102990.0,0.00970958]
[1747662166541,0.22335415,103000.0,102990.0,0.24431249]
[1747662166737,0.0291794,103000.0,102990.0,0.25402151]
[1747662166963,0.03888804,103000.0,102990.0,0.25402151]
[1747662167167,0.23306354,103000.0,102990.0,0.24431268]
[1747662167363,0.23306354,103000.0,102990.0,0.23460319]
[1747662167491,0.22435528,103000.0,102990.0,0.24431268]
[1747662167694,0.22435528,103000.0,102990.0,0.25402198]
[1747662167960,0.22635528,103000.0,102990.0,0.25402198]
[1747662168161,0.22635528,103000.0,102990.0,0.24066904]
[1747662168462,0.21664674,103000.0,102990.0,0.03676585]
[1747662168693,1.00812691,103000.0,102990.0,0.00606585]
[1747662168897,0.22334318,102980.0,102970.0,0.24625412]
[1747662169112,0.01942378,102960.0,102950.0,0.21369577]
[1747662169323,0.01942378,102960.0,102950.0,0.33057519]
[1747662169540,0.01942378,102960.0,102950.0,0.34333491]
[1747662169767,0.01942208,102970.0,102960.0,0.26499888]
[1747662169947,0.21363342,102980.0,102970.0,0.24555397]
[1747662170178,0.45543342,102980.0,102970.0,0.25726506]
[1747662170395,0.45543342,102980.0,102970.0,0.24655397]
[1747662170588,0.45543342,102980.0,102970.0,0.24555397]
[1747662170751,0.45543342,102980.0,102970.0,0.25526515]
[1747662171120,0.21363342,102980.0,102970.0,0.25526515]
[1747662171748,0.21363342,102980.0,102970.0,0.27104311]
[1747662172108,0.21363342,102980.0,102970.0,0.26133211]
[1747662172428,0.21363342,102980.0,102970.0,0.27568724]
[1747662172634,0.21363342,102980.0,102970.0,0.26597624]
[1747662172830,0.21363342,102980.0,102970.0,0.26697624]
[1747662174165,0.19421246,102980.0,102970.0,0.002]
[1747662177491,0.19421246,102980.0,102970.0,0.19623132]
[1747662177608,0.19421246,102980.0,102970.0,0.20594279]
[1747662177824,0.43505246,102980.0,102970.0,0.24735407]
[1747662178066,0.00971015,102980.0,102970.0,0.26677597]
[1747662178290,0.03884078,102980.0,102970.0,0.26677597]
[1747662178483,0.0485513,102980.0,102970.0,0.26677597]
[1747662178690,0.01942001,102980.0,102970.0,0.26677597]
[1747662178837,0.02913035,102980.0,102970.0,0.27284299]
[1747662179230,0.03884078,102980.0,102970.0,0.27284299]
[1747662179432,0.03884078,102980.0,102970.0,0.67284299]
[1747662180041,0.02913035,102980.0,102970.0,0.67284299]
[1747662180256,0.0194201,102980.0,102970.0,0.67284299]
[1747662180485,0.2136123,102990.0,102980.0,0.24533322]
[1747662180683,0.23303081,102990.0,102980.0,0.25504337]
[1747662180925,0.22332179,102990.0,102980.0,0.23562298]
[1747662181143,0.20392289,102980.0,102970.0,0.4349]
[1747662181355,0.20392289,102980.0,102970.0,0.62234288]
[1747662181527,0.20392289,102980.0,102970.0,0.23674651]
[1747662181753,0.20392289,102980.0,102970.0,0.01275907]
[1747662182097,0.0291311,102980.0,102970.0,0.26902394]
[1747662182306,0.00970986,102980.0,102970.0,0.26902394]
[1747662182498,0.02913006,102980.0,102970.0,0.27002394]
[1747662182709,0.03884049,102980.0,102970.0,0.27002394]
[1747662182932,0.02913006,102980.0,102970.0,0.27002394]
[1747662183160,0.0388404,102980.0,102970.0,0.27002394]
[1747662183363,0.02912987,102980.0,102970.0,0.27002394]
[1747662183784,0.02912987,102980.0,102970.0,0.27102394]
[1747662183992,0.01941982,102980.0,102970.0,0.27102394]
[1747662184199,0.19419361,102990.0,102980.0,0.23562308]
[1747662184735,0.19419361,102990.0,102980.0,0.2453336]
[1747662184934,0.19419361,102990.0,102980.0,0.26475418]
[1747662185141,0.22332217,102990.0,102980.0,0.27446423]
[1747662185345,1.14514641,103000.0,102990.0,0.19419361]
[1747662185609,1.13543796,103000.0,102990.0,0.59419361]
[1747662185814,1.13543796,103000.0,102990.0,0.4]
[1747662186524,1.13591849,103000.0,102990.0,0.59419361]
[1747662186725,1.13591849,103000.0,102990.0,0.4]
[1747662186930,1.13591849,103000.0,102980.0,0.26475229]
[1747662187146,1.13791849,103000.0,102980.0,0.27145918]
[1747662187352,1.13791849,103000.0,102980.0,0.67752568]
[1747662187557,1.13991849,103000.0,102980.0,0.67752568]
[1747662187759,1.13791849,103000.0,102990.0,0.20390319]
[1747662187969,1.13591849,103000.0,102990.0,0.21361258]
[1747662188174,0.00971137,102970.0,102960.0,0.23645689]
[1747662188381,0.00971184,102960.0,102950.0,0.2234079]
[1747662188575,0.00971184,102960.0,102950.0,0.25590866]
[1747662188772,0.20395756,102970.0,102960.0,0.22645019]
[1747662189005,0.22338021,102970.0,102960.0,0.0322]
[1747662189273,0.22338021,102970.0,102960.0,0.0352]
[1747662190251,0.21366912,102970.0,102960.0,0.0352]
[1747662190732,0.21366809,102970.0,102960.0,0.24887473]
[1747662191079,0.21737937,102970.0,102960.0,0.24887492]
[1747662191286,0.22709084,102970.0,102960.0,0.24887492]
[1747662191466,0.22709084,102970.0,102960.0,0.26158705]
[1747662191987,0.21737937,102970.0,102960.0,0.66158705]
[1747662192419,0.22709074,102970.0,102960.0,0.67129899]
[1747662192816,0.22709074,102970.0,102960.0,0.67129908]
[1747662193032,0.23680221,102970.0,102960.0,0.68101102]
[1747662193243,0.23680296,102970.0,102960.0,0.67129908]
[1747662193624,0.23680296,102970.0,102960.0,0.68101102]
[1747662193784,0.23680296,102970.0,102960.0,0.68101045]
[1747662194682,0.00971081,102970.0,102960.0,0.68101045]
[1747662194886,0.0194219,102970.0,102960.0,0.68101045]
[1747662195094,0.01942181,102970.0,102960.0,0.68101045]
[1747662195360,0.0291329,102970.0,102960.0,0.28101045]
[1747662195596,0.03884427,102970.0,102960.0,0.28101045]
[1747662197058,0.0291329,102970.0,102960.0,0.28707767]
[1747662197268,0.21366406,102980.0,102970.0,0.21365397]
[1747662197661,0.21366406,102980.0,102970.0,0.21972138]
[1747662197868,0.21366406,102980.0,102970.0,0.23616356]
[1747662198432,0.6948,102990.0,102980.0,0.22334347]
[1747662198588,0.71421794,102990.0,102980.0,0.26535343]
[1747662198799,0.71421794,102990.0,102980.0,0.27142065]
[1747662199007,1.73139247,102990.0,102980.0,0.01279812]
[1747662199171,2.38000239,102990.0,102980.0,0.01279812]
[1747662199371,2.03037247,102990.0,102980.0,0.01279812]
[1747662199688,0.5524417,102990.0,102980.0,0.21672101]
[1747662199872,0.4551323,102990.0,102980.0,0.22643116]
[1747662200075,0.4551323,102990.0,102980.0,0.21672101]
[1747662200304,0.2136123,102990.0,102980.0,0.21672101]
[1747662200498,0.2136123,102990.0,102980.0,0.22643135]
[1747662200916,0.2039031,102990.0,102980.0,0.22643135]
[1747662201085,0.19419361,102990.0,102980.0,0.21672101]
[1747662201299,0.2039031,102990.0,102980.0,0.22643116]
[1747662201511,0.01941869,102990.0,102980.0,0.26704112]
[1747662201722,0.02912751,102990.0,102980.0,0.26704112]
[1747662201952,0.038837,102990.0,102980.0,0.26704112]
[1747662202556,0.04854658,102990.0,102980.0,0.26704112]
[1747662202768,0.24274095,102990.0,102980.0,0.26704112]
[1747662202965,0.24274095,102990.0,102980.0,0.24762101]
[1747662203175,0.23303175,102990.0,102980.0,0.25154159]
[1747662203368,0.23303175,102990.0,102980.0,0.23614159]
[1747662203712,0.22332236,102990.0,102980.0,0.23614159]
[1747662203916,0.22332236,102990.0,102980.0,0.24585174]
[1747662204641,0.21361287,102990.0,102980.0,0.20701058]
[1747662205002,0.20390329,102990.0,102980.0,0.01279812]
[1747662207211,0.21361268,102990.0,102980.0,0.20392308]
[1747662207441,0.02912714,102990.0,102980.0,0.26535362]
[1747662207796,0.03883663,102990.0,102980.0,0.26535362]
[1747662208358,0.04854621,102990.0,102980.0,0.26535362]
[1747662209204,0.24273982,102990.0,102980.0,0.25564366]
[1747662209386,0.23303099,102990.0,102980.0,0.23994385]
[1747662209593,0.23303099,102990.0,102980.0,0.24965409]
[1747662209882,0.22332236,102990.0,102980.0,0.22334385]
[1747662210086,0.21361287,102990.0,102980.0,0.23305409]
[1747662210297,0.21361287,102990.0,102980.0,0.24276424]
[1747662210495,0.01941888,102990.0,102980.0,0.24276367]
[1747662210733,0.01941832,102990.0,102980.0,0.2746632]
[1747662210925,0.02912781,102990.0,102980.0,0.2746632]
[1747662211172,0.24274068,102990.0,102980.0,0.2746632]
[1747662211389,0.00970722,103010.0,103000.0,0.21357534]
[1747662211599,0.02960173,103010.0,103000.0,0.22328341]
[1747662211809,0.24317312,103010.0,103000.0,0.24547534]
[1747662211982,0.22375886,103010.0,103000.0,0.24547534]
[1747662212421,0.22375886,103010.0,103000.0,0.20386698]
[1747662212558,0.21405154,103010.0,103000.0,0.21357543]
[1747662212949,0.21405154,103010.0,103000.0,0.22328379]
[1747662213147,0.21805144,103010.0,102990.0,0.20390253]
[1747662213389,0.22329925,103000.0,102990.0,0.2364031]
[1747662213597,0.0291245,103000.0,102990.0,0.26553081]
[1747662214709,0.02912441,103000.0,102990.0,0.26553081]
[1747662215135,0.03112441,103000.0,102990.0,0.26553081]
[1747662215344,0.01141605,103000.0,102990.0,0.26553081]
[1747662215520,0.01141605,103000.0,102990.0,0.66553081]
[1747662215768,0.02312422,103000.0,102990.0,0.66553081]
[1747662216014,0.02312422,103000.0,102990.0,0.26553081]
[1747662216228,0.02312422,103000.0,102990.0,0.76553081]
[1747662216867,0.01341605,103000.0,102990.0,0.76553081]
[1747662217120,0.02312412,103000.0,102990.0,0.76553081]
[1747662219519,0.02341595,103000.0,102990.0,0.74943081]
[1747662219718,0.02341595,103000.0,102990.0,1.16513081]
[1747662219922,0.01370788,103000.0,102990.0,1.16513081]
[1747662220175,0.02341586,103000.0,102990.0,1.16513081]
[1747662220356,0.03312393,103000.0,102990.0,1.16513081]
[1747662220556,0.01370788,103000.0,102990.0,1.16513081]
[1747662220738,0.01370798,103000.0,102990.0,1.16513081]
[1747662221184,0.02341615,103000.0,102990.0,1.16513081]
[1747662221588,0.01370798,103000.0,102990.0,1.16513081]
[1747662222280,0.02341605,103000.0,102990.0,1.16513081]
[1747662222645,0.03312431,103000.0,102990.0,1.16513081]
[1747662222944,0.03312431,103000.0,102990.0,1.17792055]
[1747662223348,0.03312431,103000.0,102990.0,1.16222055]
[1747662223558,0.004,103000.0,102990.0,1.16222055]
[1747662223767,0.01370807,103000.0,102990.0,1.16222055]
[1747662223976,0.02341633,103000.0,102990.0,1.16222055]
[1747662224148,0.02341633,103000.0,102990.0,1.19862055]
[1747662224555,0.02341624,103000.0,102990.0,1.19862055]
[1747662224761,0.03312478,103000.0,102990.0,0.76582055]
[1747662224969,0.02341633,103000.0,102990.0,0.76582055]
[1747662225532,0.04283323,103000.0,102990.0,0.76582055]
[1747662225724,0.22730029,103000.0,102990.0,0.53278974]
[1747662225952,0.21759193,103000.0,102990.0,0.53278974]
[1747662226577,0.23269193,103000.0,102990.0,0.53278974]
[1747662227207,0.33000133,103000.0,102990.0,0.53278974]
[1747662227495,0.56892133,103000.0,102990.0,0.53278974]
[1747662227887,1.2791921,103000.0,102990.0,0.53278974]
[1747662228130,1.2791921,103000.0,102990.0,0.52672413]
[1747662228579,1.2791921,103000.0,102990.0,0.52]
[1747662230052,1.2711921,103000.0,102990.0,0.52]
[1747662231302,1.2911921,103000.0,102990.0,0.52]
[1747662231494,1.2811921,103000.0,102990.0,0.52]
[1747662231670,1.2911921,103000.0,102990.0,0.52]
[1747662231873,1.7271534,103000.0,102990.0,0.52]
[1747662232076,1.7664534,103000.0,102990.0,0.46413742]
[1747662232240,1.7664534,103000.0,102990.0,0.3834128]
[1747662232445,1.7081534,103000.0,102990.0,0.3331628]
[1747662232698,1.4692334,103000.0,102990.0,0.28463818]
[1747662232917,1.7082734,103000.0,102990.0,0.2807287]
[1747662233109,1.9498334,103000.0,102990.0,0.2807287]
[1747662237065,1.9498334,103000.0,102990.0,0.2014287]
[1747662237318,0.2136953,102950.0,102940.0,0.07832004]
[1747662237541,0.5489247,102950.0,102940.0,0.07832004]
[1747662237749,0.56346555,102950.0,102940.0,0.07832004]
[1747662237964,0.90309547,102950.0,102940.0,0.07832004]
[1747662238280,1.24309547,102950.0,102940.0,0.07832004]
[1747662238516,1.24318872,102950.0,102940.0,0.07932004]
[1747662238739,0.9035588,102950.0,102940.0,0.08132004]
[1747662239196,0.9035588,102950.0,102940.0,0.11232004]
[1747662239423,0.9035588,102950.0,102940.0,0.034]
[1747662239634,0.6656388,102950.0,102940.0,0.034]
[1747662239857,0.9030788,102950.0,102940.0,0.034]
[1747662240127,0.31109795,102950.0,102940.0,0.24771624]
[1747662240353,0.02923218,102950.0,102940.0,0.34546384]
[1747662240587,9.325e-05,102950.0,102940.0,0.34546384]
[1747662241035,0.00980585,102950.0,102940.0,0.74546384]
[1747662241263,0.01951864,102950.0,102940.0,0.6671438]
[1747662242426,9.325e-05,102950.0,102940.0,0.6671438]
[1747662244090,9.325e-05,102950.0,102940.0,0.2671438]
[1747662244514,9.325e-05,102950.0,102940.0,0.7044532]
[1747662244726,9.325e-05,102950.0,102940.0,1.1044532]